bitfinex/quotes_SOLUSD_20250310
["timestamp","ask_amount","ask_price","bid_price","bid_amount"]
[1741622853666,8.42066824,121.35,121.33,0.03]
[1741622853846,71.64753477,121.35,121.33,0.03]
[1741622854040,0.17986824,121.35,121.33,0.03]
[1741622854241,10.67986824,121.35,121.33,0.03]
[1741622855055,18.92046824,121.35,121.33,0.03]
[1741622855449,63.22686653,121.34,121.33,0.03]
[1741622855642,62.22686653,121.34,121.33,0.03]
[1741622855848,10.67986824,121.35,121.33,0.03]
[1741622856157,10.67986824,121.35,121.33,63.25686653]
[1741622856365,0.17986824,121.35,121.34,63.22686653]
[1741622856741,0.17986824,121.35,121.34,63.3690281]
[1741622856944,0.17986824,121.35,121.34,63.22686653]
[1741622857144,0.17986824,121.35,121.33,0.03]
[1741622858156,8.42046824,121.35,121.33,0.03]
[1741622858472,63.22686653,121.34,121.33,0.03]
[1741622858643,71.64733477,121.35,121.33,0.03]
[1741622858848,0.17986824,121.35,121.33,0.03]
[1741622859458,75.71616451,121.35,121.33,0.03]
[1741622859774,63.22686653,121.34,121.33,0.03]
[1741622860349,71.46816653,121.34,121.33,0.03]
[1741622861573,91.63871539,121.34,121.33,0.0001]
[1741622861769,144.28906653,121.34,121.33,0.0001]
[1741622861978,162.93871539,121.34,121.33,0.0001]
[1741622862470,91.63871539,121.34,121.33,0.0001]
[1741622862664,72.98906653,121.34,121.33,0.0001]
[1741622863381,91.63871539,121.34,121.33,0.0001]
[1741622863683,100.44964886,121.33,121.24,63.22686653]
[1741622863862,63.22686653,121.3,121.24,63.22686653]
[1741622864175,63.22686653,121.3,121.25,63.22686653]
[1741622864359,8.2447,121.29,121.24,63.22686653]
[1741622864677,8.2447,121.29,121.25,63.22686653]
[1741622864980,63.22686653,121.26,121.2,0.03]
[1741622865150,10.46,121.25,121.22,63.22686653]
[1741622865570,10.46,121.25,121.23,63.22686653]
[1741622865848,10.46,121.25,121.2,0.17216157]
[1741622866082,10.46,121.25,121.22,63.22686653]
[1741622866369,8.2481,121.24,121.2,0.03]
[1741622866573,14.61702645,121.25,121.23,63.22686653]
[1741622866882,14.61702645,121.25,121.24,63.22686653]
[1741622867168,14.61702645,121.25,121.23,63.22686653]
[1741622867565,22.86462645,121.25,121.21,20.0]
[1741622867770,22.86462645,121.25,121.23,63.22686653]
[1741622867771,14.61702645,121.25,121.23,63.22686653]
[1741622867984,0.17896276,121.24,121.21,0.14216157]
[1741622868352,0.17896276,121.24,121.21,63.3690281]
[1741622868766,8.42716276,121.24,121.2,63.25686653]
[1741622869074,8.42716276,121.24,121.21,63.22686653]
[1741622869461,8.42716276,121.24,121.2,63.25686653]
[1741622870077,8.42716276,121.24,121.22,63.22686653]
[1741622870376,8.42716276,121.24,121.21,63.22686653]
[1741622870689,0.17896276,121.24,121.2,0.17216157]
[1741622870888,8.42706276,121.24,121.21,63.22686653]
[1741622871103,8.42706276,121.24,121.2,0.03]
[1741622871393,0.17896276,121.24,121.22,63.3690281]
[1741622871579,0.17896276,121.24,121.23,63.22686653]
[1741622872001,8.42706276,121.24,121.23,63.22686653]
[1741622872177,8.42706276,121.24,121.22,63.22686653]
[1741622872384,8.42706276,121.24,121.21,63.22686653]
[1741622872698,0.17896276,121.24,121.23,63.22686653]
[1741622873199,8.42706276,121.24,121.21,63.22686653]
[1741622874279,0.17896276,121.24,121.22,63.22686653]
[1741622874469,0.17896276,121.24,121.23,63.51118967]
[1741622874675,0.17896276,121.24,121.23,71.75988967]
[1741622875276,0.17896276,121.24,121.23,83.3690281]
[1741622875478,0.17896276,121.24,121.23,83.22686653]
[1741622875685,0.17896276,121.24,121.23,63.22686653]
[1741622875904,0.17896276,121.24,121.21,8.39216157]
[1741622876079,0.17896276,121.24,121.22,63.22686653]
[1741622876279,8.42716276,121.24,121.21,63.22686653]
[1741622876586,0.17896276,121.24,121.22,63.22686653]
[1741622876898,0.17896276,121.24,121.23,63.22686653]
[1741622877104,0.17896276,121.24,121.22,63.22686653]
[1741622877796,71.65392929,121.24,121.2,0.03]
[1741622878004,63.22686653,121.23,121.2,0.03]
[1741622878185,73.76686653,121.22,121.2,0.03]
[1741622878695,10.54,121.22,121.2,0.03]
[1741622878889,18.7894,121.22,121.2,0.03]
[1741622879289,82.01626653,121.22,121.2,0.03]
[1741622879599,43.4760981,121.22,121.1,7.6761]
[1741622879896,106.70296463,121.22,121.16,63.22686653]
[1741622880098,43.4760981,121.22,121.16,63.22686653]
[1741622880289,63.22686653,121.2,121.14,63.22686653]
[1741622880485,22.8524981,121.22,121.17,63.22686653]
[1741622880700,22.8524981,121.22,121.15,0.28432314]
[1741622880898,96.24432314,121.21,121.1,7.6761]
[1741622881100,63.22686653,121.17,121.07,8.2596]
[1741622881292,6.202,121.2,121.15,63.22686653]
[1741622881601,73.78686653,121.21,121.16,63.22686653]
[1741622881782,73.78686653,121.21,121.15,63.22686653]
[1741622881783,63.22686653,121.2,121.15,63.22686653]
[1741622881984,63.22686653,121.19,121.12,20.14216157]
[1741622882291,63.22686653,121.19,121.13,63.22686653]
[1741622882492,63.22686653,121.19,121.14,63.22686653]
[1741622882697,63.22686653,121.18,121.13,63.22686653]
[1741622882881,63.22686653,121.19,121.13,63.22686653]
[1741622883080,10.56,121.21,121.17,63.22686653]
[1741622883282,10.56,121.21,121.19,63.22686653]
[1741622884078,18.8104,121.21,121.15,0.14216157]
[1741622884304,73.78686653,121.21,121.15,63.22686653]
[1741622884605,10.56,121.21,121.18,63.22686653]
[1741622885402,10.52,121.23,121.2,63.22686653]
[1741622885807,10.52,121.23,121.16,8.2535]
[1741622885998,10.52,121.23,121.19,63.22686653]
[1741622886402,10.52,121.23,121.2,63.22686653]
[1741622886711,10.52,121.23,121.21,63.22686653]
[1741622886899,10.52,121.23,121.17,0.28432314]
[1741622887093,73.74686653,121.23,121.18,63.22686653]
[1741622887287,10.52,121.23,121.2,63.22686653]
[1741622887484,10.52,121.23,121.21,63.22686653]
[1741622887691,10.52,121.23,121.22,63.22686653]
[1741622887885,0.17519161,121.22,121.21,63.3690281]
[1741622888292,0.17519161,121.22,121.2,63.22686653]
[1741622888490,0.17519161,121.22,121.2,0.14216157]
[1741622888729,0.17519161,121.22,121.2,63.22686653]
[1741622888900,0.17519161,121.22,121.2,71.47716653]
[1741622889596,0.17519161,121.22,121.21,63.51118967]
[1741622890010,0.16776566,121.23,121.22,1.86882314]
[1741622890196,0.16776566,121.23,121.22,1.72666157]
[1741622890398,0.16776566,121.23,121.22,0.14216157]
[1741622890607,10.66776566,121.23,121.2,63.3690281]
[1741622890804,10.66776566,121.23,121.22,63.22686653]
[1741622891004,10.66776566,121.23,121.22,71.76058967]
[1741622891601,6.566e-05,121.23,121.22,71.76058967]
[1741622891804,0.17818172,121.26,121.25,20.28432314]
[1741622892000,0.17818172,121.26,121.25,83.51118967]
[1741622892503,0.17818172,121.26,121.25,83.3690281]
[1741622892701,0.17818172,121.26,121.25,0.14216157]
[1741622893102,0.17818172,121.26,121.25,63.51118967]
[1741622893414,8.172e-05,121.26,121.25,127.97464868]
[1741622893807,8.172e-05,121.26,121.25,146.62429754]
[1741622894013,6.341e-05,121.27,121.26,126.7380562]
[1741622894916,1.716e-05,121.28,121.27,0.14216157]
[1741622895214,1.716e-05,121.28,121.27,63.51118967]
[1741622895429,10.52001716,121.28,121.26,8.2467]
[1741622895731,10.52001716,121.28,121.27,63.3690281]
[1741622896041,10.52001716,121.28,121.27,63.22686653]
[1741622896195,18.76551716,121.28,121.22,8.2494]
[1741622896508,73.74688369,121.28,121.23,63.22686653]
[1741622896933,10.52001716,121.28,121.26,63.3690281]
[1741622897096,10.52001716,121.28,121.27,63.3690281]
[1741622897798,1.716e-05,121.28,121.27,63.51118967]
[1741622898204,1.716e-05,121.28,121.27,63.3690281]
[1741622898403,1.716e-05,121.28,121.26,63.3690281]
[1741622898618,1.716e-05,121.28,121.26,0.14216157]
[1741622898798,1.716e-05,121.28,121.27,71.6150281]
[1741622898994,1.716e-05,121.28,121.26,8.2464]
[1741622899206,10.58,121.27,121.24,71.6170281]
[1741622899405,10.58,121.27,121.19,63.22686653]
[1741622899624,10.58,121.27,121.21,63.22686653]
[1741622899814,73.80686653,121.27,121.22,63.22686653]
[1741622900003,2.06868565,121.26,121.24,63.3690281]
[1741622900199,2.06868565,121.26,121.21,20.14216157]
[1741622900397,65.29555218,121.26,121.21,0.14216157]
[1741622900594,2.06868565,121.26,121.22,63.22686653]
[1741622900802,2.06868565,121.26,121.23,63.22686653]
[1741622900999,2.06868565,121.26,121.24,8.2481]
[1741622901305,65.29555218,121.25,121.19,63.3690281]
[1741622901504,65.29555218,121.25,121.2,63.22686653]
[1741622901711,2.06868565,121.25,121.21,63.22686653]
[1741622902104,65.29555218,121.25,121.21,0.14216157]
[1741622902321,2.06868565,121.24,121.21,0.14216157]
[1741622902825,2.06868565,121.24,121.21,63.22686653]
[1741622903117,2.06868565,121.24,121.21,8.2501]
[1741622903904,2.06868565,121.25,121.21,8.2501]
[1741622904119,2.06868565,121.25,121.21,71.47696653]
[1741622904318,2.06868565,121.25,121.21,8.2501]
[1741622904525,2.06868565,121.25,121.21,71.50696653]
[1741622904819,82.05316653,121.27,121.21,71.50696653]
[1741622905019,63.22686653,121.26,121.21,71.50696653]
[1741622905211,63.22686653,121.26,121.21,8.42226157]
[1741622905530,63.22686653,121.26,121.21,8.42216157]
[1741622905820,82.05316653,121.27,121.21,71.6490281]
[1741622906023,18.8263,121.27,121.22,63.22686653]
[1741622906228,18.8263,121.27,121.21,0.03]
[1741622906229,63.22686653,121.25,121.21,0.03]
[1741622906614,63.22686653,121.26,121.21,71.50676653]
[1741622906799,63.22686653,121.26,121.21,0.03]
[1741622907005,10.58,121.27,121.23,63.22686653]
[1741622907205,10.5,121.26,121.23,63.22686653]
[1741622908007,0.17832248,121.24,121.22,63.22686653]
[1741622908206,0.17832248,121.24,121.21,8.2801]
[1741622908622,0.17832248,121.24,121.21,50.87640509]
[1741622909627,0.17832248,121.24,121.22,42.73846666]
[1741622909821,0.17832248,121.24,121.23,42.73846666]
[1741622910402,0.17832248,121.24,121.22,42.59630509]
[1741622910624,0.17832248,121.24,121.21,42.62630509]
[1741622910823,0.17832248,121.24,121.21,0.03]
[1741622911122,0.17832248,121.24,121.21,8.28]
[1741622911524,0.17832248,121.24,121.21,0.03]
[1741622911724,42.59630509,121.23,121.21,0.03]
[1741622911900,51.02272757,121.24,121.21,0.03]
[1741622912105,0.17832248,121.24,121.21,0.03]
[1741622912306,51.02282757,121.24,121.21,0.03]
[1741622912506,42.59630509,121.23,121.21,0.03]
[1741622912920,51.02282757,121.24,121.21,0.03]
[1741622913328,42.59630509,121.23,121.21,0.03]
[1741622913523,42.59630509,121.22,121.21,0.03]
[1741622913928,61.24595395,121.22,121.12,42.73846666]
[1741622914232,42.59630509,121.16,121.12,0.14216157]
[1741622914529,10.4,121.15,121.12,42.73846666]
[1741622914728,52.99630509,121.14,121.08,1.6106]
[1741622914931,10.38,121.13,121.09,42.59630509]
[1741622915134,10.38,121.13,121.07,8.54392314]
[1741622915432,42.59630509,121.11,121.06,12.77403083]
[1741622915605,18.6356,121.13,121.06,12.77403083]
[1741622915606,42.59630509,121.1,121.06,12.77403083]
[1741622916009,42.59630509,121.09,121.04,42.73846666]
[1741622916237,10.46,121.08,121.02,8.40516157]
[1741622916534,10.46,121.08,121.06,64.06966623]
[1741622917020,10.46,121.08,121.05,64.06966623]
[1741622917218,10.46,121.08,121.06,64.06966623]
[1741622917616,64.06966623,121.07,121.01,21.03723083]
[1741622917919,74.52966623,121.08,121.02,64.2118278]
[1741622918244,10.46,121.08,121.02,0.14216157]
[1741622918552,74.52966623,121.08,121.02,0.28432314]
[1741622918834,64.06966623,121.06,121.01,21.03723083]
[1741622919011,74.52966623,121.08,121.02,64.06966623]
[1741622919213,64.06966623,121.07,121.02,64.06966623]
[1741622919434,10.46,121.08,121.01,8.2632]
[1741622919618,64.06966623,121.07,121.02,64.06966623]
[1741622919818,64.06966623,121.07,121.01,8.2632]
[1741622920016,74.52966623,121.08,121.03,64.06966623]
[1741622920234,64.06966623,121.09,121.04,64.06966623]
[1741622920436,64.06966623,121.07,121.02,64.06966623]
[1741622920626,64.06966623,121.06,121.01,72.33286623]
[1741622921146,64.06966623,121.05,120.96,7.9263]
[1741622921347,64.06966623,121.04,120.99,0.14216157]
[1741622921643,11.06,121.1,121.04,0.14216157]
[1741622921952,65.65866623,121.14,121.06,0.14216157]
[1741622921953,11.1,121.12,121.06,0.14216157]
[1741622922319,75.16966623,121.12,121.07,64.06966623]
[1741622922518,11.1,121.12,121.08,0.14216157]
[1741622922713,11.1,121.12,121.07,64.06966623]
[1741622922714,11.1,121.12,121.07,0.14216157]
[1741622922919,75.16966623,121.12,121.07,64.2118278]
[1741622923118,11.1,121.12,121.08,64.06966623]
[1741622923313,11.1,121.12,121.09,72.32796623]
[1741622923541,11.1,121.12,121.1,64.06966623]
[1741622923744,11.1,121.12,121.11,64.06966623]
[1741622924114,11.1,121.12,121.11,64.2118278]
[1741622924537,218.58,121.16,121.12,0.14216157]
[1741622924538,229.66,121.16,121.12,0.14216157]
[1741622924752,229.66,121.16,121.11,0.14216157]
[1741622924920,229.66,121.16,121.1,0.14216157]
[1741622925115,293.72966623,121.16,121.11,64.06966623]
[1741622925321,229.66,121.16,121.12,64.06966623]
[1741622926342,64.06966623,121.14,121.08,64.06966623]
[1741622926521,64.06966623,121.12,121.07,64.2118278]
[1741622926839,11.04,121.11,121.07,64.06966623]
[1741622927241,11.04,121.11,121.08,64.06966623]
[1741622927448,11.04,121.11,121.09,72.32796623]
[1741622927745,11.04,121.11,121.1,64.06966623]
[1741622927932,0.15160967,121.1,121.09,72.4701278]
[1741622928125,0.15160967,121.1,121.09,64.06966623]
[1741622928334,0.15160967,121.1,121.07,8.2596]
[1741622928528,0.15160967,121.1,121.07,72.32926623]
[1741622928927,0.15160967,121.1,121.08,64.06966623]
[1741622929246,0.15160967,121.1,121.09,64.06966623]
[1741622929438,0.15160967,121.1,121.07,8.2596]
[1741622929745,0.15160967,121.1,121.06,0.14216157]
[1741622929746,0.15160967,121.1,121.06,72.4719278]
[1741622930128,0.15160967,121.1,121.06,64.06966623]
[1741622930361,64.06966623,121.08,121.03,64.06966623]
[1741622930565,64.06966623,121.08,121.05,0.03]
[1741622930855,11.02,121.07,121.05,64.09966623]
[1741622931153,11.02,121.07,121.05,0.03]
[1741622931552,11.02,121.07,121.06,64.06966623]
[1741622931858,0.15160967,121.1,121.07,0.14216157]
[1741622932050,0.15160967,121.1,121.09,64.06966623]
[1741622932430,0.15160967,121.1,121.09,64.35398937]
[1741622932940,0.15160967,121.1,121.09,64.2118278]
[1741622933138,0.15160967,121.1,121.09,84.35398937]
[1741622933353,0.15160967,121.1,121.09,72.61228937]
[1741622933549,0.15160967,121.1,121.09,72.32796623]
[1741622933856,0.15160967,121.1,121.09,72.61228937]
[1741622934240,0.15160967,121.1,121.09,72.4701278]
[1741622934749,0.15160967,121.1,121.09,72.32796623]
[1741622934954,0.15160967,121.1,121.07,64.06966623]
[1741622935148,64.06966623,121.08,121.03,64.06966623]
[1741622935344,64.06966623,121.08,121.03,72.33176623]
[1741622935553,0.15160967,121.1,121.04,64.06966623]
[1741622935554,64.06966623,121.09,121.04,64.06966623]
[1741622935731,0.15160967,121.1,121.05,64.06966623]
[1741622935732,64.2212759,121.1,121.05,64.06966623]
[1741622935935,0.15160967,121.1,121.06,64.06966623]
[1741622936152,0.15160967,121.1,121.07,64.06966623]
[1741622936344,0.15160967,121.1,121.08,64.06966623]
[1741622936547,0.15160967,121.1,121.09,64.06966623]
[1741622936952,0.15160967,121.1,121.08,64.06966623]
[1741622937149,0.15160967,121.1,121.09,64.2118278]
[1741622937655,0.15160967,121.1,121.09,72.32796623]
[1741622937860,0.15160967,121.1,121.08,64.06966623]
[1741622938163,0.15160967,121.1,121.09,64.06966623]
[1741622938362,0.15160967,121.1,121.09,64.2118278]
[1741622938657,0.15160967,121.1,121.09,64.35398937]
[1741622939758,0.15160967,121.1,121.09,72.61228937]
[1741622940233,0.15160967,121.1,121.09,51.06457908]
[1741622940433,0.15160967,121.1,121.09,51.20674065]
[1741622940755,3.218e-05,121.11,121.1,0.28432314]
[1741622940960,0.15962007,121.12,121.11,0.14216157]
[1741622941159,0.15962007,121.12,121.11,42.94844065]
[1741622941458,2.007e-05,121.12,121.11,42.94844065]
[1741622941658,1.907e-05,121.13,121.12,8.39836157]
[1741622941960,1.907e-05,121.13,121.12,51.06247908]
[1741622942142,1.907e-05,121.13,121.12,8.39836157]
[1741622942347,1.907e-05,121.13,121.12,8.2562]
[1741622942553,1.907e-05,121.13,121.12,72.522275]
[1741622943145,1.907e-05,121.13,121.12,72.23795186]
[1741622943462,1.907e-05,121.13,121.07,8.54392314]
[1741622943665,1.907e-05,121.13,121.12,63.98175186]
[1741622943860,1.907e-05,121.13,121.1,72.23935186]
[1741622944240,1.907e-05,121.13,121.11,63.98175186]
[1741622944763,1.907e-05,121.13,121.12,64.266075]
[1741622945062,1.907e-05,121.13,121.12,128.24782686]
[1741622945455,0.15298965,121.15,121.13,0.28432314]
[1741622945456,3.8e-06,121.15,121.13,0.28432314]
[1741622945759,4.1798516,121.23,121.15,20.91982314]
[1741622945760,62.95265851,121.23,121.15,20.91982314]
[1741622946065,70.49045186,121.24,121.19,63.98175186]
[1741622946364,70.49045186,121.24,121.16,0.14216157]
[1741622946564,70.49045186,121.24,121.19,63.98175186]
[1741622946866,63.98175186,121.23,121.18,63.98175186]
[1741622947159,10.96,121.22,121.18,64.12391343]
[1741622947361,10.96,121.22,121.19,63.98175186]
[1741622947565,10.96,121.22,121.2,63.98175186]
[1741622947760,218.6,121.27,121.21,72.37401343]
[1741622947959,0.15177401,121.23,121.22,0.28432314]
[1741622948344,0.15177401,121.23,121.22,64.12391343]
[1741622948662,0.15177401,121.23,121.22,0.28432314]
[1741622949045,0.15177401,121.23,121.22,64.266075]
[1741622949755,0.15177401,121.23,121.22,72.515475]
[1741622949964,0.15177401,121.23,121.22,72.37331343]
[1741622950763,0.15177401,121.23,121.22,63.98175186]
[1741622950951,0.15177401,121.23,121.22,72.37331343]
[1741622951669,0.15177401,121.23,121.22,72.515475]
[1741622952481,7.401e-05,121.23,121.22,72.515475]
[1741622952652,6.871e-05,121.24,121.23,0.28432314]
[1741622952968,5.791e-05,121.26,121.25,0.28432314]
[1741622953181,0.17377857,121.27,121.26,38.933972]
[1741622953182,3.648e-05,121.27,121.26,38.933972]
[1741622953384,0.1797254,121.3,121.26,38.933972]
[1741622953385,3.895e-05,121.28,121.27,18.933972]
[1741622953680,3.895e-05,121.28,121.27,64.266075]
[1741622953884,3.895e-05,121.28,121.27,72.512075]
[1741622954373,3.895e-05,121.28,121.27,73.74832444]
[1741622954581,0.1797254,121.3,121.29,20.28432314]
[1741622954582,2.72e-05,121.3,121.29,20.28432314]
[1741622954756,2.72e-05,121.3,121.29,84.266075]
[1741622955165,2.72e-05,121.3,121.29,64.12391343]
[1741622955374,2.72e-05,121.3,121.29,64.266075]
[1741622956151,2.72e-05,121.3,121.29,72.510775]
[1741622957154,2.72e-05,121.3,121.29,72.22645186]
[1741622957359,2.72e-05,121.3,121.29,72.510775]
[1741622957756,2.72e-05,121.3,121.29,63.98175186]
[1741622957962,2.72e-05,121.3,121.29,72.510775]
[1741622958885,2.72e-05,121.3,121.27,21.85126832]
[1741622958886,2.72e-05,121.3,121.28,63.98175186]
[1741622959091,2.72e-05,121.3,121.29,64.12391343]
[1741622959284,2.72e-05,121.3,121.29,63.98175186]
[1741622959469,2.72e-05,121.3,121.29,64.266075]
[1741622959860,2.72e-05,121.3,121.29,63.98175186]
[1741622960060,72.22265186,121.35,121.29,63.98175186]
[1741622960368,63.98175186,121.33,121.28,63.98175186]
[1741622960568,63.98175186,121.35,121.3,63.98175186]
[1741622960957,8.3031,121.36,121.31,63.98175186]
[1741622961170,10.92,121.35,121.31,63.98175186]
[1741622961357,70.78485186,121.36,121.3,63.98175186]
[1741622961673,63.98175186,121.35,121.27,29.14512314]
[1741622961876,63.98175186,121.36,121.31,63.98175186]
[1741622962078,1.5415,121.39,121.3,0.28432314]
[1741622962079,8.2385,121.38,121.3,0.28432314]
[1741622962292,63.98175186,121.37,121.32,63.98175186]
[1741622962591,10.92,121.36,121.32,63.98175186]
[1741622962762,74.90175186,121.36,121.31,63.98175186]
[1741622963182,10.92,121.36,121.31,63.98175186]
[1741622963694,10.92,121.36,121.3,0.28432314]
[1741622963860,63.98175186,121.36,121.31,63.98175186]
[1741622964395,42.51381889,121.38,121.33,42.51381889]
[1741622964559,42.51381889,121.38,121.32,42.51381889]
[1741622964763,42.51381889,121.37,121.32,42.51381889]
[1741622964968,42.51381889,121.38,121.33,42.51381889]
[1741622965259,42.51381889,121.35,121.3,50.75751889]
[1741622965563,42.51381889,121.34,121.3,8.2437]
[1741622965772,10.88,121.37,121.31,42.51381889]
[1741622965969,42.51381889,121.36,121.32,8.2426]
[1741622966167,42.51381889,121.36,121.3,42.51381889]
[1741622966377,42.51381889,121.34,121.28,8.38746157]
[1741622966678,53.39381889,121.37,121.3,0.14216157]
[1741622966886,10.86,121.37,121.33,42.51381889]
[1741622967092,42.51381889,121.36,121.29,0.14216157]
[1741622967265,10.86,121.37,121.3,42.51381889]
[1741622967266,42.51381889,121.35,121.3,42.51381889]
[1741622967583,53.37381889,121.37,121.32,42.51381889]
[1741622967769,10.89,121.37,121.33,42.51381889]
[1741622967964,0.16357699,121.31,121.3,8.52832314]
[1741622968162,0.16357699,121.31,121.3,8.244]
[1741622968476,0.16357699,121.31,121.3,8.52832314]
[1741622968778,0.14323951,121.34,121.3,71.50998046]
[1741622968970,0.14323951,121.34,121.33,42.51381889]
[1741622969178,0.14323951,121.34,121.31,42.51381889]
[1741622969376,0.14323951,121.34,121.33,42.51381889]
[1741622969964,0.14323951,121.34,121.32,42.51381889]
[1741622970170,0.14323951,121.34,121.32,50.75621889]
[1741622970577,50.8983584,121.34,121.29,8.3074]
[1741622970779,42.6570584,121.34,121.29,50.82121889]
[1741622970985,50.8983584,121.34,121.29,50.82121889]
[1741622971157,0.14323951,121.34,121.3,42.51381889]
[1741622971362,0.14323951,121.34,121.31,42.51381889]
[1741622971982,0.14323951,121.34,121.33,8.2419]
[1741622972174,0.14323951,121.34,121.33,50.75571889]
[1741622972380,0.14323951,121.34,121.32,50.75621889]
[1741622972576,0.14323951,121.34,121.31,50.75671889]
[1741622972778,0.14323951,121.34,121.32,42.51381889]
[1741622973089,0.14323951,121.34,121.33,42.51381889]
[1741622973290,0.14323951,121.34,121.32,42.51381889]
[1741622973472,0.14323951,121.34,121.33,42.51381889]
[1741622973980,0.14323951,121.34,121.33,51.04004203]
[1741622974183,0.14323951,121.34,121.33,50.75571889]
[1741622974581,0.14323951,121.34,121.33,8.2419]
[1741622974780,0.14323951,121.34,121.33,50.75571889]
[1741622974980,0.14323951,121.34,121.33,51.04004203]
[1741622975762,50.2568207,121.39,121.33,51.04004203]
[1741622975987,50.2568207,121.39,121.34,42.51381889]
[1741622975988,8.2379,121.39,121.34,42.51381889]
[1741622976484,42.51381889,121.39,121.34,42.51381889]
[1741622976691,56.80541889,121.4,121.35,42.51381889]
[1741622976985,10.8,121.39,121.35,42.51381889]
[1741622977367,10.8,121.39,121.36,42.51381889]
[1741622977567,56.80511889,121.4,121.35,42.51381889]
[1741622977888,55.30511889,121.4,121.35,42.51381889]
[1741622978275,55.30511889,121.4,121.35,50.75441889]
[1741622978485,55.30511889,121.4,121.35,50.75431889]
[1741622979104,53.29381889,121.39,121.33,62.51381889]
[1741622979399,42.51381889,121.38,121.33,62.51381889]
[1741622979599,10.78,121.39,121.31,42.51381889]
[1741622979600,42.51381889,121.37,121.31,42.51381889]
[1741622979767,42.51381889,121.36,121.31,42.51381889]
[1741622980193,42.51381889,121.37,121.31,50.75671889]
[1741622980397,42.51381889,121.37,121.32,42.51381889]
[1741622980970,28.8349,121.38,121.32,42.51381889]
[1741622981175,53.21381889,121.37,121.32,42.51381889]
[1741622981370,10.7,121.37,121.34,42.51381889]
[1741622981771,8.2382,121.39,121.34,42.51381889]
[1741622981971,10.68,121.38,121.34,42.51381889]
[1741622982200,8.2392,121.37,121.33,42.51381889]
[1741622982405,50.75301889,121.37,121.32,42.51381889]
[1741622982708,50.75301889,121.37,121.31,50.81991889]
[1741622982882,10.68,121.38,121.34,42.51381889]
[1741622983493,18.9185,121.38,121.34,42.51381889]
[1741622983905,61.43231889,121.38,121.33,42.51381889]
[1741622984574,53.19381889,121.38,121.33,50.75571889]
[1741622984795,10.68,121.38,121.34,42.51381889]
[1741622985008,53.19381889,121.38,121.33,42.51381889]
[1741622985311,42.51381889,121.37,121.32,50.75591889]
[1741622985523,18.9187,121.38,121.35,42.51381889]
[1741622985681,42.51381889,121.37,121.32,50.75591889]
[1741622986017,42.51381889,121.36,121.31,50.81971889]
[1741622986182,42.51381889,121.36,121.31,0.063]
[1741622986379,42.51381889,121.36,121.31,42.57681889]
[1741622986600,50.75301889,121.37,121.32,42.51381889]
[1741622986904,18.9188,121.38,121.32,42.51381889]
[1741622987117,10.68,121.38,121.34,42.51381889]
[1741622987284,18.9185,121.38,121.33,42.51381889]
[1741622988013,0.17287785,121.34,121.33,42.51381889]
[1741622988812,0.17287785,121.34,121.33,50.75571889]
[1741622988999,0.17287785,121.34,121.33,8.2419]
[1741622989201,0.17287785,121.34,121.32,8.2426]
[1741622989500,0.17287785,121.34,121.33,42.51381889]
[1741622990301,7.785e-05,121.34,121.33,42.79814203]
[1741622990686,7.138e-05,121.35,121.34,42.51381889]
[1741622991783,8.561e-05,121.36,121.34,44.03377615]
[1741622991984,8.561e-05,121.36,121.35,62.79814203]
[1741622992298,8.561e-05,121.36,121.35,42.51381889]
[1741622992503,8.561e-05,121.36,121.35,42.79814203]
[1741622992693,8.561e-05,121.36,121.35,51.03874203]
[1741622993779,8.429e-05,121.37,121.36,105.31196092]
[1741622994493,3.916e-05,121.38,121.36,105.31196092]
[1741622994689,3.916e-05,121.38,121.37,105.02763778]
[1741622994887,9.823e-05,121.39,121.38,0.28432314]
[1741622995204,0.20067781,121.4,121.38,85.31196092]
[1741622995502,0.20067781,121.4,121.39,42.79814203]
[1741622995686,7.781e-05,121.4,121.39,42.79814203]
[1741622995888,0.17006613,121.42,121.41,20.0]
[1741622996088,0.17006613,121.42,121.41,62.51381889]
[1741622996706,0.17006613,121.42,121.41,50.75031889]
[1741622997213,40.54193016,121.47,121.41,8.2365]
[1741622997519,64.75911889,121.5,121.43,42.51381889]
[1741622997520,275.04751889,121.48,121.43,42.51381889]
[1741622998184,275.04751889,121.48,121.41,8.2365]
[1741622998509,52.89381889,121.47,121.42,42.51381889]
[1741622998696,50.74691889,121.46,121.41,42.51381889]
[1741622998907,42.51381889,121.44,121.39,50.75171889]
[1741622999091,42.51381889,121.45,121.4,42.51381889]
[1741622999287,42.51381889,121.45,121.39,8.2379]
[1741622999288,42.51381889,121.44,121.39,42.51381889]
[1741623000307,42.51381889,121.45,121.4,42.51381889]
[1741623000688,8.2331,121.46,121.42,42.51381889]
[1741623000891,224.3015,121.48,121.43,42.51381889]
[1741623001196,52.87381889,121.45,121.38,8.2385]
[1741623001496,10.36,121.45,121.41,42.51381889]